[Event "*** SCC Grand Prix: Titled Tuesday Blitz"]
[Site "Chess.com"]
[Date "2020.07.14"]
[Round "6"]
[White "PrinceMurad09"]
[Black "Bastiandash"]
[Result "1-0"]
[WhiteElo "2510"]
[BlackElo "2317"]
[TimeControl "180+1"]
[EndTime "11:05:58 PDT"]
[Termination "PrinceMurad09 won by resignation"]

1. e4 {[%clk 0:03:00.9]} 1... c5 {[%clk 0:02:57.3]} 2. Nf3 {[%clk 0:03:01.2]}
2... e6 {[%clk 0:02:56]} 3. g3 {[%clk 0:03:00.4]} 3... a6 {[%clk 0:02:56]} 4.
Bg2 {[%clk 0:03:00.4]} 4... b5 {[%clk 0:02:56.2]} 5. O-O {[%clk 0:03:01.3]} 5...
Bb7 {[%clk 0:02:55]} 6. Re1 {[%clk 0:03:02.2]} 6... Qc7 {[%clk 0:02:55.3]} 7. a4
{[%clk 0:03:02.7]} 7... Nf6 {[%clk 0:02:51.7]} 8. axb5 {[%clk 0:03:02.9]} 8...
axb5 {[%clk 0:02:52.2]} 9. Rxa8 {[%clk 0:03:00]} 9... Bxa8 {[%clk 0:02:53.1]}
10. e5 {[%clk 0:02:57.4]} 10... Nd5 {[%clk 0:02:52.5]} 11. d4 {[%clk 0:02:57.6]}
11... c4 {[%clk 0:02:43.2]} 12. h4 {[%clk 0:02:58]} 12... d6 {[%clk 0:02:43]}
13. c3 {[%clk 0:02:56.8]} 13... Nd7 {[%clk 0:02:41.8]} 14. exd6 {[%clk
0:02:56.7]} 14... Bxd6 {[%clk 0:02:42.7]} 15. h5 {[%clk 0:02:57.1]} 15... h6
{[%clk 0:02:28.6]} 16. Nbd2 {[%clk 0:02:56.8]} 16... b4 {[%clk 0:02:26.4]} 17.
Ne4 {[%clk 0:02:56.5]} 17... Be7 {[%clk 0:02:20.6]} 18. Qa4 {[%clk 0:02:48]}
18... Bc6 {[%clk 0:02:07.3]} 19. Qc2 {[%clk 0:02:47.8]} 19... O-O {[%clk
0:02:01.7]} 20. g4 {[%clk 0:02:47.9]} 20... bxc3 {[%clk 0:01:56.1]} 21. bxc3
{[%clk 0:02:47.8]} 21... N5f6 {[%clk 0:01:53.4]} 22. Nxf6+ {[%clk 0:02:40.8]}
22... Nxf6 {[%clk 0:01:54.3]} 23. Ne5 {[%clk 0:02:41]} 23... Bxg2 {[%clk
0:01:49.6]} 24. Kxg2 {[%clk 0:02:41.9]} 24... Bd6 {[%clk 0:01:41.9]} 25. Bf4
{[%clk 0:02:38.8]} 25... Nd5 {[%clk 0:01:38.5]} 26. Bg3 {[%clk 0:02:37.6]} 26...
f6 {[%clk 0:01:34.5]} 27. Ng6 {[%clk 0:02:30.5]} 27... Re8 {[%clk 0:01:05]} 28.
Qa4 {[%clk 0:02:24.2]} 28... Kf7 {[%clk 0:00:57.4]} 29. Bxd6 {[%clk 0:02:16.2]}
29... Qxd6 {[%clk 0:00:58.3]} 30. Qxc4 {[%clk 0:02:15.3]} 30... Nf4+ {[%clk
0:00:36.5]} 31. Nxf4 {[%clk 0:02:04.9]} 31... Qxf4 {[%clk 0:00:37.4]} 32. Qe2
{[%clk 0:02:03.7]} 32... e5 {[%clk 0:00:36]} 33. Qf3 {[%clk 0:01:56.6]} 33...
Qd2 {[%clk 0:00:17.7]} 34. Rb1 {[%clk 0:01:54.7]} 34... e4 {[%clk 0:00:04]} 35.
Qf5 {[%clk 0:01:54.7]} 35... Re7 {[%clk 0:00:01.9]} 36. Qg6+ {[%clk 0:01:51.4]}
36... Ke6 {[%clk 0:00:01.6]} 37. Rb6+ {[%clk 0:01:50.1]} 37... Kd7 {[%clk
0:00:01.8]} 38. Qf5+ {[%clk 0:01:50.3]} 38... Ke8 {[%clk 0:00:01.7]} 39. Rb8+
{[%clk 0:01:49.8]} 39... Kf7 {[%clk 0:00:02.3]} 40. Qd5+ {[%clk 0:01:47.6]}
40... Re6 {[%clk 0:00:01.2]} 41. Rb7+ {[%clk 0:01:45.7]} 41... Kf8 {[%clk
0:00:01.6]} 42. Qxe6 {[%clk 0:01:43.6]} 1-0

[Event "*** SCC Grand Prix: Titled Tuesday Blitz"]
[Site "Chess.com"]
[Date "2020.07.14"]
[Round "6"]
[White "okriak"]
[Black "Oglob71"]
[Result "1/2-1/2"]
[WhiteElo "2699"]
[BlackElo "2530"]
[TimeControl "180+1"]
[EndTime "11:06:00 PDT"]
[Termination "Game drawn - insufficient material"]

1. Nf3 {[%clk 0:03:00.3]} 1... Nf6 {[%clk 0:02:57.5]} 2. c4 {[%clk 0:03:00]}
2... c5 {[%clk 0:02:57]} 3. Nc3 {[%clk 0:02:59.6]} 3... e6 {[%clk 0:02:57]} 4.
g3 {[%clk 0:02:59.2]} 4... b6 {[%clk 0:02:56]} 5. Bg2 {[%clk 0:02:59.5]} 5...
Bb7 {[%clk 0:02:56.6]} 6. O-O {[%clk 0:02:59.5]} 6... d6 {[%clk 0:02:57]} 7. d4
{[%clk 0:02:58.6]} 7... cxd4 {[%clk 0:02:56.2]} 8. Qxd4 {[%clk 0:02:59.2]} 8...
a6 {[%clk 0:02:56]} 9. Rd1 {[%clk 0:02:57.4]} 9... Qc7 {[%clk 0:02:54.3]} 10. b3
{[%clk 0:02:56.4]} 10... Nbd7 {[%clk 0:02:53.9]} 11. e4 {[%clk 0:02:54.6]} 11...
Be7 {[%clk 0:02:53.4]} 12. Ba3 {[%clk 0:02:54.3]} 12... Nc5 {[%clk 0:02:52.7]}
13. e5 {[%clk 0:02:51.1]} 13... dxe5 {[%clk 0:02:52.7]} 14. Qxe5 {[%clk
0:02:50.7]} 14... Qxe5 {[%clk 0:02:53.3]} 15. Nxe5 {[%clk 0:02:51.1]} 15... Bxg2
{[%clk 0:02:53.9]} 16. Kxg2 {[%clk 0:02:51.4]} 16... Rc8 {[%clk 0:02:54.4]} 17.
Rac1 {[%clk 0:02:37.4]} 17... Ncd7 {[%clk 0:02:51.6]} 18. Bxe7 {[%clk
0:02:35.4]} 18... Kxe7 {[%clk 0:02:49.4]} 19. Nxd7 {[%clk 0:02:34]} 19... Nxd7
{[%clk 0:02:49.3]} 20. Ne4 {[%clk 0:02:34]} 20... Rhd8 {[%clk 0:02:46.2]} 21. f4
{[%clk 0:02:29.5]} 21... Nf6 {[%clk 0:02:44.4]} 22. Kf3 {[%clk 0:02:25.5]} 22...
Nxe4 {[%clk 0:02:42.7]} 23. Kxe4 {[%clk 0:02:25.3]} 23... Rxd1 {[%clk
0:02:37.7]} 24. Rxd1 {[%clk 0:02:25.1]} 24... b5 {[%clk 0:02:38.4]} 25. Rd4
{[%clk 0:02:15.1]} 25... f6 {[%clk 0:02:33.6]} 26. Kd3 {[%clk 0:02:11.5]} 26...
e5 {[%clk 0:02:31.4]} 27. fxe5 {[%clk 0:02:11.1]} 27... fxe5 {[%clk 0:02:30.7]}
28. Rd5 {[%clk 0:02:11.4]} 28... bxc4+ {[%clk 0:02:31]} 29. bxc4 {[%clk
0:02:10.9]} 29... Ke6 {[%clk 0:02:31.4]} 30. Ra5 {[%clk 0:02:09.2]} 30... Rc6
{[%clk 0:02:29.8]} 31. h4 {[%clk 0:02:06.1]} 31... Rd6+ {[%clk 0:02:24.5]} 32.
Ke3 {[%clk 0:02:03.9]} 32... Rc6 {[%clk 0:02:24.4]} 33. Kd3 {[%clk 0:01:57.4]}
33... Rd6+ {[%clk 0:02:24.4]} 34. Kc3 {[%clk 0:01:57.4]} 34... e4 {[%clk
0:02:22.7]} 35. c5 {[%clk 0:01:52.8]} 35... Rd1 {[%clk 0:02:15.6]} 36. Rxa6+
{[%clk 0:01:51.9]} 36... Ke5 {[%clk 0:02:16]} 37. Ra7 {[%clk 0:01:51.7]} 37...
Rc1+ {[%clk 0:02:13.6]} 38. Kb4 {[%clk 0:01:51.4]} 38... e3 {[%clk 0:02:09.3]}
39. Rxg7 {[%clk 0:01:49.9]} 39... Kd4 {[%clk 0:02:09.4]} 40. Rd7+ {[%clk
0:01:49.1]} 40... Ke4 {[%clk 0:02:09.7]} 41. Rxh7 {[%clk 0:01:46.8]} 41... e2
{[%clk 0:02:08.1]} 42. Re7+ {[%clk 0:01:46.5]} 42... Kf3 {[%clk 0:02:08.5]} 43.
h5 {[%clk 0:01:40.6]} 43... e1=Q+ {[%clk 0:01:13.6]} 44. Rxe1 {[%clk 0:01:38.9]}
44... Rxe1 {[%clk 0:01:14.5]} 45. h6 {[%clk 0:01:38.3]} 45... Rh1 {[%clk
0:01:11.7]} 46. c6 {[%clk 0:01:35.2]} 46... Rxh6 {[%clk 0:01:11.9]} 47. Kb5
{[%clk 0:01:35.5]} 47... Kxg3 {[%clk 0:01:02.8]} 48. c7 {[%clk 0:01:35.3]} 48...
Rh8 {[%clk 0:01:02.4]} 49. a4 {[%clk 0:01:35.1]} 49... Kf4 {[%clk 0:01:01]} 50.
a5 {[%clk 0:01:35]} 50... Ke5 {[%clk 0:01:01.4]} 51. Kc6 {[%clk 0:01:35.3]}
51... Ke6 {[%clk 0:01:00.2]} 52. a6 {[%clk 0:01:35.5]} 52... Ke7 {[%clk
0:00:56.2]} 53. a7 {[%clk 0:01:35.2]} 53... Rg8 {[%clk 0:00:56.1]} 54. Kb7
{[%clk 0:01:32]} 54... Kd7 {[%clk 0:00:56]} 55. a8=Q {[%clk 0:01:32.1]} 55...
Rxa8 {[%clk 0:00:56]} 56. Kxa8 {[%clk 0:01:32.7]} 56... Kxc7 {[%clk 0:00:56.7]}
1/2-1/2

[Event "*** SCC Grand Prix: Titled Tuesday Blitz"]
[Site "Chess.com"]
[Date "2020.07.14"]
[Round "6"]
[White "shnitez"]
[Black "Joseacorrea"]
[Result "1-0"]
[WhiteElo "2523"]
[BlackElo "1941"]
[TimeControl "180+1"]
[EndTime "11:06:02 PDT"]
[Termination "shnitez won on time"]

1. d4 {[%clk 0:03:00.9]} 1... e6 {[%clk 0:02:59.2]} 2. c4 {[%clk 0:02:59.8]}
2... f5 {[%clk 0:02:58.5]} 3. g3 {[%clk 0:02:59]} 3... Nf6 {[%clk 0:02:58.1]} 4.
Bg2 {[%clk 0:02:59.4]} 4... c6 {[%clk 0:02:58.6]} 5. Nf3 {[%clk 0:02:59.6]} 5...
d5 {[%clk 0:02:58.8]} 6. O-O {[%clk 0:03:00.2]} 6... Bd6 {[%clk 0:02:58.7]} 7.
b3 {[%clk 0:03:00.6]} 7... Nbd7 {[%clk 0:02:58.2]} 8. Ba3 {[%clk 0:03:00.4]}
8... Qe7 {[%clk 0:02:52.9]} 9. Qc1 {[%clk 0:02:59.6]} 9... Ne4 {[%clk
0:02:45.1]} 10. Qb2 {[%clk 0:02:59.2]} 10... O-O {[%clk 0:02:41]} 11. Bxd6
{[%clk 0:02:55.8]} 11... Qxd6 {[%clk 0:02:40.5]} 12. Na3 {[%clk 0:02:51.3]}
12... Rf6 {[%clk 0:02:31.1]} 13. Nc2 {[%clk 0:02:50.4]} 13... a5 {[%clk
0:02:27]} 14. Nce1 {[%clk 0:02:45.8]} 14... a4 {[%clk 0:02:24.7]} 15. Nd3 {[%clk
0:02:45.5]} 15... a3 {[%clk 0:02:23.2]} 16. Qc1 {[%clk 0:02:35.7]} 16... Rh6
{[%clk 0:02:15.4]} 17. Rb1 {[%clk 0:02:17]} 17... b6 {[%clk 0:01:59.3]} 18. b4
{[%clk 0:02:11.6]} 18... Ba6 {[%clk 0:01:48.1]} 19. c5 {[%clk 0:02:04.1]} 19...
Qc7 {[%clk 0:01:42.5]} 20. Qxa3 {[%clk 0:01:59.4]} 20... Qb7 {[%clk 0:01:16.7]}
21. Qb2 {[%clk 0:01:55.8]} 21... Bc4 {[%clk 0:01:11.8]} 22. a3 {[%clk
0:01:49.7]} 22... Bxd3 {[%clk 0:01:03.5]} 23. exd3 {[%clk 0:01:49.3]} 23... Nef6
{[%clk 0:01:04.2]} 24. Rfe1 {[%clk 0:01:45.5]} 24... Kf7 {[%clk 0:00:55.6]} 25.
Re2 {[%clk 0:01:43.1]} 25... b5 {[%clk 0:00:48.9]} 26. Rbe1 {[%clk 0:01:41]}
26... Ne8 {[%clk 0:00:40.1]} 27. Ng5+ {[%clk 0:01:35.4]} 27... Kg8 {[%clk
0:00:32.5]} 28. Nxe6 {[%clk 0:01:34.4]} 28... Nef6 {[%clk 0:00:17.2]} 29. h4
{[%clk 0:01:24.8]} 29... Nf8 {[%clk 0:00:08.7]} 30. Bh3 {[%clk 0:01:17.4]} 30...
Nxe6 {[%clk 0:00:03.7]} 31. Rxe6 {[%clk 0:01:18.3]} 31... f4 {[%clk 0:00:04.3]}
32. Qc1 {[%clk 0:01:12.6]} 32... fxg3 {[%clk 0:00:02.6]} 33. fxg3 {[%clk
0:01:13.5]} 1-0

[Event "*** SCC Grand Prix: Titled Tuesday Blitz"]
[Site "Chess.com"]
[Date "2020.07.14"]
[Round "6"]
[White "Djager97"]
[Black "Zurability"]
[Result "1-0"]
[WhiteElo "2460"]
[BlackElo "2578"]
[TimeControl "180+1"]
[EndTime "11:06:04 PDT"]
[Termination "Djager97 won on time"]

1. e4 {[%clk 0:03:00.9]} 1... e5 {[%clk 0:02:57.5]} 2. Nf3 {[%clk 0:03:01.1]}
2... Nc6 {[%clk 0:02:57.2]} 3. d4 {[%clk 0:03:01.6]} 3... exd4 {[%clk 0:02:56]}
4. Nxd4 {[%clk 0:03:02.5]} 4... Bc5 {[%clk 0:02:56.2]} 5. Nb3 {[%clk 0:03:02.3]}
5... Bb6 {[%clk 0:02:56.2]} 6. Qe2 {[%clk 0:03:02.9]} 6... Nge7 {[%clk
0:02:53.3]} 7. Nc3 {[%clk 0:03:01.7]} 7... O-O {[%clk 0:02:53.7]} 8. Be3 {[%clk
0:03:00.9]} 8... d6 {[%clk 0:02:52.1]} 9. O-O-O {[%clk 0:03:00.8]} 9... f5
{[%clk 0:02:52.8]} 10. f4 {[%clk 0:02:58.9]} 10... Qe8 {[%clk 0:02:43.5]} 11. g3
{[%clk 0:02:54.7]} 11... fxe4 {[%clk 0:02:31]} 12. Bg2 {[%clk 0:02:48.9]} 12...
Bxe3+ {[%clk 0:02:03.2]} 13. Qxe3 {[%clk 0:02:48.8]} 13... Nf5 {[%clk
0:02:01.5]} 14. Qxe4 {[%clk 0:02:48.5]} 14... Bd7 {[%clk 0:01:27.7]} 15. Rhe1
{[%clk 0:02:44.6]} 15... Qf7 {[%clk 0:01:21.1]} 16. Nd5 {[%clk 0:02:21]} 16...
Rae8 {[%clk 0:01:14.4]} 17. Qd3 {[%clk 0:02:21.4]} 17... Bc8 {[%clk 0:01:07.2]}
18. Kb1 {[%clk 0:02:09.5]} 18... Nd8 {[%clk 0:00:48.9]} 19. g4 {[%clk
0:01:49.3]} 19... Nh4 {[%clk 0:00:46.3]} 20. Be4 {[%clk 0:01:46.1]} 20... c6
{[%clk 0:00:34.7]} 21. Bxh7+ {[%clk 0:01:32.8]} 21... Kh8 {[%clk 0:00:33.8]} 22.
Qh3 {[%clk 0:01:33.3]} 22... g5 {[%clk 0:00:14.6]} 23. fxg5 {[%clk 0:01:21]}
23... Rxe1 {[%clk 0:00:09.2]} 24. Rxe1 {[%clk 0:01:21.3]} 24... Qxh7 {[%clk
0:00:09.5]} 25. Nf6 {[%clk 0:01:20]} 25... Rxf6 {[%clk 0:00:05.4]} 26. gxf6
{[%clk 0:01:20.9]} 26... Be6 {[%clk 0:00:04.1]} 27. Nd4 {[%clk 0:01:19.6]} 27...
Bf7 {[%clk 0:00:02.5]} 28. Re7 {[%clk 0:01:17]} 28... Ng6 {[%clk 0:00:01.8]} 29.
Qxh7+ {[%clk 0:01:03.2]} 29... Kxh7 {[%clk 0:00:02.7]} 30. Rd7 {[%clk 0:01:04]}
1-0

[Event "*** SCC Grand Prix: Titled Tuesday Blitz"]
[Site "Chess.com"]
[Date "2020.07.14"]
[Round "6"]
[White "andy_rekt"]
[Black "tamarozi99"]
[Result "1-0"]
[WhiteElo "2297"]
[BlackElo "2015"]
[TimeControl "180+1"]
[EndTime "11:06:04 PDT"]
[Termination "andy_rekt won by resignation"]

1. d4 {[%clk 0:03:00.9]} 1... Nf6 {[%clk 0:02:55]} 2. c4 {[%clk 0:03:00.6]} 2...
g6 {[%clk 0:02:54.6]} 3. Nc3 {[%clk 0:02:59.1]} 3... Bg7 {[%clk 0:02:54.8]} 4.
e4 {[%clk 0:02:59.2]} 4... d6 {[%clk 0:02:55.1]} 5. Nge2 {[%clk 0:02:59.2]} 5...
O-O {[%clk 0:02:49.9]} 6. Ng3 {[%clk 0:02:54.4]} 6... e5 {[%clk 0:02:47.6]} 7.
d5 {[%clk 0:02:53.6]} 7... c6 {[%clk 0:02:47.9]} 8. Be2 {[%clk 0:02:47.3]} 8...
cxd5 {[%clk 0:02:47.5]} 9. cxd5 {[%clk 0:02:47.1]} 9... a6 {[%clk 0:02:44.1]}
10. h4 {[%clk 0:02:43.9]} 10... b5 {[%clk 0:02:41.9]} 11. a3 {[%clk 0:02:41.6]}
11... Nbd7 {[%clk 0:02:30.3]} 12. h5 {[%clk 0:02:40.7]} 12... Nc5 {[%clk
0:02:28.4]} 13. h6 {[%clk 0:02:39.9]} 13... Bh8 {[%clk 0:02:27.6]} 14. Bg5
{[%clk 0:02:39.8]} 14... Qb6 {[%clk 0:02:23.7]} 15. O-O {[%clk 0:02:38.6]} 15...
b4 {[%clk 0:02:17.8]} 16. axb4 {[%clk 0:02:37.9]} 16... Qxb4 {[%clk 0:02:17.8]}
17. Qc2 {[%clk 0:02:25.5]} 17... Nb3 {[%clk 0:01:42.8]} 18. Ra4 {[%clk
0:02:09.5]} 18... Nd4 {[%clk 0:01:42.4]} 19. Rxb4 {[%clk 0:02:01.7]} 19... Nxc2
{[%clk 0:01:42.1]} 20. Rb6 {[%clk 0:02:01.7]} 20... Rd8 {[%clk 0:01:30.3]} 21.
f4 {[%clk 0:01:58.9]} 21... exf4 {[%clk 0:00:53.4]} 22. Rxf4 {[%clk 0:01:53.8]}
22... Nxd5 {[%clk 0:00:48.1]} 23. Nxd5 {[%clk 0:01:45.9]} 23... Bd4+ {[%clk
0:00:47.4]} 24. Kh2 {[%clk 0:01:41.9]} 24... Bxb6 {[%clk 0:00:46.6]} 25. Nxb6
{[%clk 0:01:42.2]} 25... Bb7 {[%clk 0:00:41.4]} 26. Nxa8 {[%clk 0:01:34.2]}
26... Rxa8 {[%clk 0:00:41]} 27. Rf6 {[%clk 0:01:22.8]} 27... Nd4 {[%clk
0:00:35]} 28. Rxd6 {[%clk 0:01:14.3]} 28... Ne6 {[%clk 0:00:34.9]} 29. Bf6
{[%clk 0:01:12]} 29... Kf8 {[%clk 0:00:33.3]} 30. Rb6 {[%clk 0:01:04.5]} 30...
Bc8 {[%clk 0:00:24.4]} 31. e5 {[%clk 0:01:02.5]} 31... Ke8 {[%clk 0:00:23]} 32.
Bf3 {[%clk 0:01:02.1]} 32... Ra7 {[%clk 0:00:21.2]} 33. Bc6+ {[%clk 0:01:00.4]}
1-0

[Event "*** SCC Grand Prix: Titled Tuesday Blitz"]
[Site "Chess.com"]
[Date "2020.07.14"]
[Round "6"]
[White "Artem_Sadovsky"]
[Black "margarita_2703"]
[Result "1-0"]
[WhiteElo "2553"]
[BlackElo "2389"]
[TimeControl "180+1"]
[EndTime "11:06:06 PDT"]
[Termination "Artem_Sadovsky won by checkmate"]

1. Nf3 {[%clk 0:03:00.9]} 1... Nf6 {[%clk 0:02:02.5]} 2. c4 {[%clk 0:02:55.7]}
2... c6 {[%clk 0:02:00.3]} 3. b3 {[%clk 0:02:55.5]} 3... d5 {[%clk 0:01:59.6]}
4. Bb2 {[%clk 0:02:55.9]} 4... Bg4 {[%clk 0:01:55.6]} 5. e3 {[%clk 0:02:55.6]}
5... e6 {[%clk 0:01:55.3]} 6. Be2 {[%clk 0:02:56.1]} 6... Nbd7 {[%clk
0:01:55.1]} 7. O-O {[%clk 0:02:56.7]} 7... Bd6 {[%clk 0:01:55.2]} 8. d3 {[%clk
0:02:56]} 8... O-O {[%clk 0:01:53.8]} 9. Nbd2 {[%clk 0:02:56.4]} 9... e5 {[%clk
0:01:53.6]} 10. Qc2 {[%clk 0:02:52.1]} 10... Re8 {[%clk 0:01:50.3]} 11. Rad1
{[%clk 0:02:50.7]} 11... Qc7 {[%clk 0:01:34]} 12. h3 {[%clk 0:02:50.1]} 12...
Bh5 {[%clk 0:01:32.2]} 13. cxd5 {[%clk 0:02:48.7]} 13... cxd5 {[%clk 0:01:31.6]}
14. Qxc7 {[%clk 0:02:49.6]} 14... Bxc7 {[%clk 0:01:31.4]} 15. Rc1 {[%clk
0:02:50.3]} 15... Bd6 {[%clk 0:01:29.3]} 16. Rfe1 {[%clk 0:02:49.8]} 16... Rac8
{[%clk 0:01:25.3]} 17. a3 {[%clk 0:02:30.7]} 17... h6 {[%clk 0:01:23.6]} 18. b4
{[%clk 0:02:28.5]} 18... Nb6 {[%clk 0:01:19.1]} 19. Nb3 {[%clk 0:02:28.5]} 19...
e4 {[%clk 0:01:12.3]} 20. dxe4 {[%clk 0:02:19.6]} 20... dxe4 {[%clk 0:01:11.6]}
21. Nfd4 {[%clk 0:02:20.2]} 21... Bxe2 {[%clk 0:01:11]} 22. Nxe2 {[%clk
0:02:17.3]} 22... Nfd5 {[%clk 0:01:09.1]} 23. Bd4 {[%clk 0:02:12.9]} 23... Be7
{[%clk 0:00:51.3]} 24. Na5 {[%clk 0:02:11.8]} 24... Bf6 {[%clk 0:00:45.1]} 25.
Nxb7 {[%clk 0:02:08.6]} 25... Bxd4 {[%clk 0:00:43.8]} 26. Nxd4 {[%clk
0:02:09.5]} 26... Nc4 {[%clk 0:00:38.5]} 27. Rxc4 {[%clk 0:02:06.1]} 27... Rxc4
{[%clk 0:00:37.6]} 28. Nd6 {[%clk 0:02:07]} 28... Rec8 {[%clk 0:00:37.1]} 29.
Nxc8 {[%clk 0:01:54.8]} 29... Rxc8 {[%clk 0:00:36.3]} 30. Rd1 {[%clk 0:01:48.2]}
30... Nb6 {[%clk 0:00:22.4]} 31. Nb5 {[%clk 0:01:44.9]} 31... a6 {[%clk
0:00:21.1]} 32. Nd6 {[%clk 0:01:33.9]} 32... Rc3 {[%clk 0:00:20.3]} 33. Rd4
{[%clk 0:01:34.5]} 33... Rxa3 {[%clk 0:00:19.2]} 34. Rxe4 {[%clk 0:01:34.4]}
34... Nd5 {[%clk 0:00:18.7]} 35. Re8+ {[%clk 0:01:34]} 35... Kh7 {[%clk
0:00:18.3]} 36. Nxf7 {[%clk 0:01:33.1]} 36... Nxb4 {[%clk 0:00:18]} 37. h4
{[%clk 0:01:30.8]} 37... h5 {[%clk 0:00:17.9]} 38. Ng5+ {[%clk 0:01:28.6]} 38...
Kg6 {[%clk 0:00:17.6]} 39. Re6+ {[%clk 0:01:28.8]} 39... Kf5 {[%clk 0:00:17.7]}
40. e4+ {[%clk 0:01:28.9]} 40... Kf4 {[%clk 0:00:17.6]} 41. g3+ {[%clk
0:01:27.9]} 41... Kg4 {[%clk 0:00:17.6]} 42. Kg2 {[%clk 0:01:27.6]} 42... Ra2
{[%clk 0:00:17.3]} 43. Rg6 {[%clk 0:01:24.7]} 43... Nd3 {[%clk 0:00:17.4]} 44.
Nf3# {[%clk 0:01:23.4]} 1-0

[Event "*** SCC Grand Prix: Titled Tuesday Blitz"]
[Site "Chess.com"]
[Date "2020.07.14"]
[Round "6"]
[White "Canonkasparov"]
[Black "TimofeevAr"]
[Result "0-1"]
[WhiteElo "2567"]
[BlackElo "2794"]
[TimeControl "180+1"]
[EndTime "11:06:07 PDT"]
[Termination "TimofeevAr won by resignation"]

1. d4 {[%clk 0:03:00.6]} 1... d5 {[%clk 0:02:59]} 2. Nf3 {[%clk 0:03:00.6]} 2...
Nf6 {[%clk 0:02:58.2]} 3. Bf4 {[%clk 0:03:00]} 3... e6 {[%clk 0:02:57]} 4. e3
{[%clk 0:03:00]} 4... b6 {[%clk 0:02:57]} 5. Nbd2 {[%clk 0:02:59.5]} 5... Bb7
{[%clk 0:02:57.3]} 6. Bd3 {[%clk 0:02:58.7]} 6... Bd6 {[%clk 0:02:57.6]} 7. Ne5
{[%clk 0:02:54.4]} 7... Ne4 {[%clk 0:02:37.1]} 8. O-O {[%clk 0:02:46.1]} 8...
O-O {[%clk 0:02:35.7]} 9. Qe2 {[%clk 0:02:35.5]} 9... f6 {[%clk 0:02:21.8]} 10.
Nef3 {[%clk 0:02:34.6]} 10... Qe7 {[%clk 0:02:18]} 11. Bxd6 {[%clk 0:02:32.1]}
11... Qxd6 {[%clk 0:02:16.1]} 12. c3 {[%clk 0:02:17.6]} 12... a5 {[%clk
0:02:14]} 13. Rad1 {[%clk 0:02:13.6]} 13... Nd7 {[%clk 0:02:13.4]} 14. Bb5
{[%clk 0:02:03.9]} 14... c6 {[%clk 0:02:08.6]} 15. Bd3 {[%clk 0:02:03.2]} 15...
f5 {[%clk 0:02:08.9]} 16. Ne1 {[%clk 0:01:56.2]} 16... c5 {[%clk 0:02:07.7]} 17.
f3 {[%clk 0:01:52.3]} 17... Nxd2 {[%clk 0:02:06.5]} 18. Qxd2 {[%clk 0:01:50]}
18... Nf6 {[%clk 0:02:06]} 19. f4 {[%clk 0:01:49.1]} 19... Ba6 {[%clk
0:02:05.4]} 20. Nf3 {[%clk 0:01:42.7]} 20... Ne4 {[%clk 0:02:05]} 21. Qe2 {[%clk
0:01:41.5]} 21... Bxd3 {[%clk 0:02:04.6]} 22. Qxd3 {[%clk 0:01:40.7]} 22... c4
{[%clk 0:02:04.9]} 23. Qc2 {[%clk 0:01:37.3]} 23... b5 {[%clk 0:02:05.1]} 24.
Nd2 {[%clk 0:01:34]} 24... Nf6 {[%clk 0:02:04.4]} 25. b3 {[%clk 0:01:25.4]}
25... Rfc8 {[%clk 0:02:02.6]} 26. bxc4 {[%clk 0:01:25.4]} 26... dxc4 {[%clk
0:01:59.5]} 27. Rb1 {[%clk 0:01:22.3]} 27... Nd5 {[%clk 0:01:52.5]} 28. Rfe1
{[%clk 0:01:06.1]} 28... b4 {[%clk 0:01:52]} 29. cxb4 {[%clk 0:00:56.7]} 29...
c3 {[%clk 0:01:51.8]} 30. Nb3 {[%clk 0:00:52.4]} 30... Nxb4 {[%clk 0:01:51.8]}
31. Qe2 {[%clk 0:00:49.3]} 31... Qd5 {[%clk 0:01:42.6]} 32. Rbc1 {[%clk
0:00:43.5]} 32... Nxa2 {[%clk 0:01:24.5]} 33. Qxa2 {[%clk 0:00:40.1]} 33... a4
{[%clk 0:01:24.8]} 34. Rb1 {[%clk 0:00:33.7]} 34... c2 {[%clk 0:01:23.9]} 35.
Rbc1 {[%clk 0:00:16.3]} 35... axb3 {[%clk 0:01:21.7]} 0-1

[Event "*** SCC Grand Prix: Titled Tuesday Blitz"]
[Site "Chess.com"]
[Date "2020.07.14"]
[Round "6"]
[White "Haykoooo0o"]
[Black "annazero"]
[Result "0-1"]
[WhiteElo "2516"]
[BlackElo "2380"]
[TimeControl "180+1"]
[EndTime "11:06:10 PDT"]
[Termination "annazero won by checkmate"]

1. d4 {[%clk 0:02:59.6]} 1... g6 {[%clk 0:02:59.9]} 2. c4 {[%clk 0:02:59.8]}
2... Bg7 {[%clk 0:03:00.3]} 3. Nc3 {[%clk 0:03:00]} 3... d6 {[%clk 0:03:00.9]}
4. e4 {[%clk 0:02:55.1]} 4... Nf6 {[%clk 0:03:01.1]} 5. f4 {[%clk 0:02:51.6]}
5... O-O {[%clk 0:03:01.2]} 6. Nf3 {[%clk 0:02:50.3]} 6... c5 {[%clk 0:03:01.2]}
7. d5 {[%clk 0:02:49.4]} 7... e6 {[%clk 0:03:01.3]} 8. Be2 {[%clk 0:02:48.2]}
8... exd5 {[%clk 0:03:01.1]} 9. cxd5 {[%clk 0:02:49.1]} 9... Bg4 {[%clk
0:02:47.2]} 10. O-O {[%clk 0:02:47.8]} 10... Nbd7 {[%clk 0:02:44.6]} 11. h3
{[%clk 0:02:46.4]} 11... Bxf3 {[%clk 0:02:44.4]} 12. Bxf3 {[%clk 0:02:47.3]}
12... Re8 {[%clk 0:02:44.7]} 13. g4 {[%clk 0:02:47.3]} 13... h6 {[%clk
0:02:21.6]} 14. h4 {[%clk 0:02:45.6]} 14... b5 {[%clk 0:02:01.7]} 15. g5 {[%clk
0:02:38.7]} 15... hxg5 {[%clk 0:02:02.6]} 16. hxg5 {[%clk 0:02:38.1]} 16... Nh7
{[%clk 0:02:02.8]} 17. Kg2 {[%clk 0:02:35.8]} 17... b4 {[%clk 0:01:55.4]} 18.
Ne2 {[%clk 0:02:34.2]} 18... c4 {[%clk 0:01:52.8]} 19. Nd4 {[%clk 0:02:24.7]}
19... Nc5 {[%clk 0:01:50.3]} 20. Nc6 {[%clk 0:02:24]} 20... Qc7 {[%clk
0:01:38.1]} 21. Qc2 {[%clk 0:02:13.2]} 21... c3 {[%clk 0:01:13.3]} 22. bxc3
{[%clk 0:02:06.8]} 22... Bxc3 {[%clk 0:01:12.5]} 23. Bb2 {[%clk 0:02:00.4]}
23... Nxe4 {[%clk 0:01:00.1]} 24. Bxe4 {[%clk 0:01:45.5]} 24... Bxb2 {[%clk
0:00:58.9]} 25. Qxb2 {[%clk 0:01:45.1]} 25... Rxe4 {[%clk 0:00:57.7]} 26. Rh1
{[%clk 0:01:43]} 26... Rae8 {[%clk 0:00:44.1]} 27. Kf3 {[%clk 0:01:37.8]} 27...
Re3+ {[%clk 0:00:41.9]} 28. Kg4 {[%clk 0:01:37.5]} 28... Qd7+ {[%clk 0:00:34.9]}
29. Kh4 {[%clk 0:01:37.1]} 29... Nxg5 {[%clk 0:00:25.4]} 30. Rag1 {[%clk
0:00:55.1]} 30... Rh3+ {[%clk 0:00:22]} 31. Rxh3 {[%clk 0:00:51.8]} 31... Qxh3+
{[%clk 0:00:22.9]} 32. Kxg5 {[%clk 0:00:51.7]} 32... Qh5+ {[%clk 0:00:22.7]} 33.
Kf6 {[%clk 0:00:51.9]} 33... Qf5# {[%clk 0:00:21.8]} 0-1